bitfinex/quotes_BTCUSD_20230108
["timestamp","ask_amount","ask_price","bid_price","bid_amount"]
[1673215999100,3.59833561,16976.0,16975.0,0.83030767]
[1673215999101,3.22615714,16976.0,16975.0,0.83030767]
[1673215999603,3.66754054,16976.0,16975.0,0.83030767]
[1673216001628,4.02066161,16976.0,16975.0,0.83030767]
[1673216003752,3.66754054,16976.0,16975.0,0.83030767]
[1673216008053,3.66754054,16976.0,16975.0,0.13030767]
[1673216009091,3.66754054,16976.0,16975.0,0.83030767]
[1673216010843,3.22615714,16976.0,16975.0,0.83030767]
[1673216011502,3.66751823,16976.0,16975.0,0.83030767]
[1673216012018,4.02062265,16976.0,16975.0,0.83030767]
[1673216012245,3.66751823,16976.0,16975.0,0.83030767]
[1673216013813,4.02062115,16976.0,16975.0,0.83030767]
[1673216014601,3.66751823,16976.0,16975.0,0.83030767]
[1673216016857,3.59409914,16976.0,16975.0,0.83030767]
[1673216017107,4.0354598,16976.0,16975.0,0.83030767]
[1673216017603,4.03544424,16976.0,16975.0,0.83030767]
[1673216018101,3.59409914,16976.0,16975.0,0.83030767]
[1673216019109,3.22615714,16976.0,16975.0,0.83030767]
[1673216019353,3.66746143,16976.0,16975.0,0.83030767]
[1673216019843,4.03540343,16976.0,16975.0,0.83030767]
[1673216020613,3.66746143,16976.0,16975.0,0.83021509]
[1673216023025,3.66746143,16976.0,16975.0,0.13021509]
[1673216023768,4.02051855,16976.0,16975.0,0.83021509]
[1673216024542,4.38846083,16976.0,16975.0,0.83021509]
[1673216024793,4.03540343,16976.0,16975.0,0.83021509]
[1673216025298,4.02051917,16976.0,16975.0,0.83021509]
[1673216025795,4.03540343,16976.0,16975.0,0.83021509]
[1673216026192,4.38844889,16976.0,16975.0,0.83021509]
[1673216026408,4.38844881,16976.0,16975.0,0.83021509]
[1673216026652,4.03540343,16976.0,16975.0,0.83021509]
[1673216026922,4.3884484,16976.0,16975.0,0.83021509]
[1673216027170,4.38844864,16976.0,16975.0,0.83021509]
[1673216027639,4.02050664,16976.0,16975.0,0.83021509]
[1673216029158,4.38844864,16976.0,16975.0,0.83021509]
[1673216029409,4.03540343,16976.0,16975.0,0.83021509]
[1673216030606,3.66746143,16976.0,16975.0,0.83021509]
[1673216031872,4.03540343,16976.0,16975.0,0.83021509]
[1673216033853,4.57221475,16976.0,16975.0,0.83021509]
[1673216034096,4.13091046,16976.0,16975.0,0.83021509]
[1673216034620,3.76296846,16976.0,16975.0,0.83021509]
[1673216036505,4.13091046,16976.0,16975.0,0.83021509]
[1673216037294,3.76296846,16976.0,16975.0,0.83021509]
[1673216037523,4.29216735,16976.0,16975.0,0.83021509]
[1673216037778,4.66010935,16976.0,16975.0,0.83021509]
[1673216038594,4.29216735,16976.0,16975.0,0.83021509]
[1673216039556,4.66010935,16976.0,16975.0,0.83021509]
[1673216040338,0.34228,16975.0,16974.0,0.44431578]
[1673216040604,0.34228,16975.0,16973.0,0.1737]
[1673216040605,2.49313803,16975.0,16973.0,0.1737]
[1673216040861,1.28958895,16974.0,16973.0,1.352018]
[1673216041400,1.28604295,16974.0,16973.0,1.352018]
[1673216041632,1.86127445,16974.0,16973.0,1.414018]
[1673216041899,1.86127445,16974.0,16973.0,1.352018]
[1673216042667,1.87227445,16974.0,16973.0,1.414018]
[1673216043430,0.5862315,16974.0,16973.0,1.80584521]
[1673216043704,0.5862315,16974.0,16973.0,2.17378721]
[1673216045216,0.76277742,16974.0,16973.0,1.99714268]
[1673216045484,0.76755529,16974.0,16973.0,1.99714268]
[1673216046686,0.76755529,16974.0,16973.0,2.17378721]
[1673216046931,0.76755529,16974.0,16973.0,1.99714268]
[1673216047187,0.76755529,16974.0,16973.0,2.29173268]
[1673216047446,0.76755529,16974.0,16973.0,1.78196]
[1673216047701,1.03237417,16974.0,16973.0,1.99774911]
[1673216048193,0.76755529,16974.0,16973.0,1.99774911]
[1673216048696,0.76755529,16974.0,16973.0,1.78196]
[1673216048954,0.82674749,16974.0,16973.0,1.78196]
[1673216049207,0.82674749,16974.0,16973.0,1.99782411]
[1673216049958,0.82674749,16974.0,16973.0,1.99782402]
[1673216049959,1.09156637,16974.0,16973.0,1.99782402]
[1673216050974,1.09156637,16974.0,16973.0,1.78196]
[1673216051466,1.09156637,16974.0,16973.0,1.99767263]
[1673216052227,0.82674749,16974.0,16973.0,1.99767263]
[1673216053716,1.09156637,16974.0,16973.0,1.99767263]
[1673216054712,0.25151599,16974.0,16973.0,1.99767263]
[1673216056174,0.51633487,16974.0,16973.0,1.99767263]
[1673216056923,0.25151599,16974.0,16973.0,1.99767263]
[1673216059617,0.25151599,16974.0,16973.0,2.29225263]
[1673216061076,0.25151599,16974.0,16973.0,1.99767263]
[1673216061586,1.13485693,16974.0,16973.0,1.99767263]
[1673216061837,1.13485693,16974.0,16973.0,1.62973063]
[1673216062861,0.95831101,16974.0,16973.0,1.80637516]
[1673216063121,0.95831101,16974.0,16973.0,2.17431716]
[1673216063369,0.07497007,16974.0,16973.0,2.17431716]
[1673216065647,0.95834139,16974.0,16973.0,2.17431716]
[1673216065904,0.95834139,16974.0,16973.0,2.10095516]
[1673216066157,0.95834139,16974.0,16973.0,1.80637516]
[1673216066414,0.95834139,16974.0,16973.0,2.10095516]
[1673216066679,0.95834139,16974.0,16973.0,2.46889716]
[1673216067696,0.95834139,16974.0,16973.0,2.17431716]
[1673216068424,0.95831329,16974.0,16973.0,2.46890716]
[1673216068674,0.95831329,16974.0,16973.0,2.17431716]
[1673216068919,0.95831329,16974.0,16973.0,1.80637516]
[1673216069641,0.95831329,16974.0,16973.0,2.17431716]
[1673216069893,0.95831329,16974.0,16973.0,1.80637516]
[1673216070411,1.39967809,16974.0,16973.0,1.63077667]
[1673216070658,0.07497007,16974.0,16973.0,4.37643386]
[1673216070912,0.07497007,16974.0,16973.0,4.37643342]
[1673216075167,0.07497007,16974.0,16973.0,4.67115873]
[1673216075391,0.07497007,16974.0,16973.0,3.77088575]
[1673216075892,0.07497007,16974.0,16973.0,3.47632575]
[1673216076369,0.07497007,16974.0,16973.0,3.77089575]
[1673216078366,0.07497007,16974.0,16973.0,3.77088575]
[1673216078846,0.07497007,16974.0,16973.0,3.77089575]
[1673216079554,0.07497007,16974.0,16973.0,3.74129254]
[1673216079796,0.07497007,16974.0,16973.0,4.03585254]
[1673216080292,0.07497007,16974.0,16973.0,4.03586254]
[1673216080827,0.07497007,16974.0,16973.0,3.77089575]
[1673216081293,0.07497007,16974.0,16973.0,4.03586254]
[1673216081547,0.07497007,16974.0,16973.0,3.77089575]
[1673216081798,0.01577787,16974.0,16973.0,3.77089575]
[1673216082066,0.01577787,16974.0,16973.0,4.67122279]
[1673216082523,0.01577787,16974.0,16973.0,4.03586254]
[1673216082772,0.01577787,16974.0,16973.0,4.67122166]
[1673216083015,0.01577787,16974.0,16973.0,4.37665166]
[1673216083273,0.01577787,16974.0,16973.0,4.67119166]
[1673216084256,0.01577787,16974.0,16973.0,4.49749166]
[1673216085438,0.01577787,16974.0,16973.0,4.49751166]
[1673216087354,0.01577787,16974.0,16973.0,4.49752166]
[1673216089870,0.01577787,16974.0,16973.0,4.79752166]
[1673216090113,0.01577787,16974.0,16973.0,4.49752166]
[1673216092095,0.01577787,16974.0,16973.0,4.49750166]
[1673216094106,0.01577787,16974.0,16973.0,4.49751166]
[1673216095865,0.07053831,16974.0,16973.0,4.49751166]
[1673216096084,0.07053831,16974.0,16973.0,4.85080071]
[1673216097056,0.07053831,16974.0,16973.0,4.37959618]
[1673216097546,0.07053831,16974.0,16973.0,4.67415618]
[1673216097812,0.07053831,16974.0,16973.0,4.67721634]
[1673216098348,0.07053831,16974.0,16973.0,4.20589618]
[1673216098602,0.07053831,16974.0,16973.0,4.50045618]
[1673216098843,0.07053831,16974.0,16973.0,4.80045618]
[1673216099605,0.07053831,16974.0,16973.0,4.50045618]
[1673216100383,0.07053831,16974.0,16973.0,5.20045618]
[1673216101411,0.07053831,16974.0,16973.0,5.50045618]
[1673216101631,0.07053831,16974.0,16973.0,5.20045618]
[1673216101882,0.07053831,16974.0,16973.0,5.50045618]
[1673216103899,0.01577787,16974.0,16973.0,5.50045618]
[1673216104404,0.01577787,16974.0,16973.0,6.1149675]
[1673216104665,0.01577787,16974.0,16973.0,5.67335618]
[1673216105167,0.01577787,16974.0,16973.0,5.85000071]
[1673216105633,0.01577787,16974.0,16973.0,5.84999071]
[1673216106814,0.01577787,16974.0,16973.0,5.67353975]
[1673216107074,0.01577787,16974.0,16973.0,5.84999071]
[1673216107329,0.01577787,16974.0,16973.0,5.85000071]
[1673216107762,0.01577787,16974.0,16973.0,5.3735698]
[1673216108239,0.01577787,16974.0,16973.0,5.85000071]
[1673216109641,0.01577787,16974.0,16973.0,5.55000071]
[1673216109868,0.01577787,16974.0,16973.0,5.84999071]
[1673216110119,0.01577787,16974.0,16973.0,5.54999071]
[1673216110375,0.01577787,16974.0,16973.0,5.81517802]
[1673216111316,0.01577787,16974.0,16973.0,5.54999071]
[1673216111533,0.01577787,16974.0,16973.0,5.81518144]
[1673216111774,0.01577787,16974.0,16973.0,5.37357012]
[1673216113309,0.01577787,16974.0,16973.0,5.07902012]
[1673216113573,0.01577787,16974.0,16973.0,5.37359012]
[1673216114228,0.01577787,16974.0,16973.0,5.07902012]
[1673216114484,0.01577787,16974.0,16973.0,5.37359012]
[1673216114995,0.01577787,16974.0,16973.0,5.07902012]
[1673216115249,0.01577787,16974.0,16973.0,5.37359012]
[1673216116393,0.01577787,16974.0,16973.0,5.81520144]
[1673216116871,0.01577787,16974.0,16973.0,5.37359012]
[1673216117142,0.01577787,16974.0,16973.0,5.81520144]
[1673216117414,0.01577787,16974.0,16973.0,5.37359012]
[1673216118200,0.01577787,16974.0,16973.0,4.67359012]
[1673216119210,0.01577787,16974.0,16973.0,5.37359012]
[1673216120591,0.01577787,16974.0,16973.0,5.81520144]
[1673216121167,0.01577787,16974.0,16973.0,5.55000071]
[1673216122880,0.01577787,16974.0,16973.0,5.85000071]
[1673216123891,0.01577787,16974.0,16973.0,5.55000071]
[1673216124140,0.01577787,16974.0,16973.0,5.81522653]
[1673216124389,0.01577787,16974.0,16973.0,5.55000071]
[1673216126240,0.01577787,16974.0,16973.0,5.85000071]
[1673216126748,0.01577787,16974.0,16973.0,5.55000071]
[1673216126989,0.01577787,16974.0,16973.0,5.85000071]
[1673216128453,0.01577787,16974.0,16973.0,5.55000071]
[1673216129463,0.01577787,16974.0,16973.0,5.55001071]
[1673216129963,0.01577787,16974.0,16973.0,4.85001071]
[1673216131005,0.01577787,16974.0,16973.0,5.55001071]
[1673216134461,0.01577787,16974.0,16973.0,5.81525249]
[1673216134703,0.01577787,16974.0,16973.0,5.55001071]
[1673216136913,0.01577787,16974.0,16973.0,4.85001071]
[1673216138178,0.01577787,16974.0,16973.0,4.85000071]
[1673216138638,0.01577787,16974.0,16973.0,5.55000071]
[1673216139423,0.01577787,16974.0,16973.0,5.54975771]
[1673216140421,0.01577787,16974.0,16973.0,5.54976771]
[1673216141656,0.01577787,16974.0,16973.0,5.54975771]
[1673216143534,0.01577787,16974.0,16973.0,5.25519771]
[1673216143750,0.01577787,16974.0,16973.0,5.81503104]
[1673216143751,0.087876,16974.0,16973.0,5.81503104]
[1673216144266,0.087876,16974.0,16973.0,5.37341972]
[1673216144520,0.087876,16974.0,16973.0,5.11503104]
[1673216144772,0.01577787,16974.0,16973.0,4.67341972]
[1673216145028,0.01577787,16974.0,16973.0,5.37341972]
[1673216147740,0.01577787,16974.0,16973.0,5.07884972]
[1673216147995,0.01577787,16974.0,16973.0,5.54976771]
[1673216148247,0.01577787,16974.0,16973.0,5.84976771]
[1673216148511,0.01577787,16974.0,16973.0,5.54976771]
[1673216149012,0.01577787,16974.0,16973.0,5.25519771]
[1673216149260,0.01577787,16974.0,16973.0,5.54974771]
[1673216149499,0.01577787,16974.0,16973.0,5.84974771]
[1673216150231,0.01577787,16974.0,16973.0,5.54974771]
[1673216150481,0.01577787,16974.0,16973.0,5.37340947]
[1673216150970,0.01577787,16974.0,16973.0,5.37341947]
[1673216151705,0.01577787,16974.0,16973.0,5.55026338]
[1673216151933,0.01577787,16974.0,16973.0,5.37341947]
[1673216154160,0.01577787,16974.0,16973.0,5.20052947]
[1673216154861,0.01577787,16974.0,16973.0,5.37735756]
[1673216155440,0.01577787,16974.0,16973.0,5.02406851]
[1673216156396,0.01577787,16974.0,16973.0,4.32406851]
[1673216156636,0.01577787,16974.0,16973.0,4.50052947]
[1673216156877,0.01577787,16974.0,16973.0,4.10730151]
[1673216157126,0.01577787,16974.0,16973.0,3.81273151]
[1673216157340,0.01577787,16974.0,16973.0,4.51273151]
[1673216157818,0.01577787,16974.0,16973.0,4.80732151]
[1673216158546,0.01577787,16974.0,16973.0,4.80731151]
[1673216158788,0.01577787,16974.0,16973.0,4.51273151]
[1673216159228,0.01577787,16974.0,16973.0,4.80731151]
[1673216159974,0.01577787,16974.0,16973.0,4.80730151]
[1673216160467,0.01577787,16974.0,16973.0,4.51273151]
[1673216160713,0.01577787,16974.0,16973.0,4.95487009]
[1673216162723,0.01577787,16974.0,16973.0,5.30815914]
[1673216163451,0.01577787,16974.0,16973.0,4.95487009]
[1673216163924,0.01577787,16974.0,16973.0,5.30815914]
[1673216164191,0.01577787,16974.0,16973.0,5.48185914]
[1673216164454,0.01577787,16974.0,16973.0,5.30503938]
[1673216165454,0.01577787,16974.0,16973.0,5.48183673]
[1673216166207,0.01577787,16974.0,16973.0,5.48183709]
[1673216166461,0.01577787,16974.0,16973.0,4.60503938]
[1673216166939,0.01577787,16974.0,16973.0,5.48183715]
[1673216167199,0.01577787,16974.0,16973.0,5.77640715]
[1673216167915,0.01577787,16974.0,16973.0,5.77641198]
[1673216168168,0.01577787,16974.0,16973.0,5.59960938]
[1673216168418,0.01577787,16974.0,16973.0,5.77641203]
[1673216168631,0.01577787,16974.0,16973.0,5.59960938]
[1673216172851,0.01577787,16974.0,16973.0,4.89960938]
[1673216173787,0.01577787,16974.0,16973.0,5.59960938]
[1673216175745,0.01570766,16974.0,16973.0,5.59960938]
[1673216177071,0.01570766,16974.0,16973.0,6.0412207]
[1673216177293,0.01570766,16974.0,16973.0,5.59960938]
[1673216179087,0.01570766,16974.0,16973.0,6.07594762]
[1673216179871,0.01570766,16974.0,16973.0,5.37594762]
[1673216180122,0.01570766,16974.0,16973.0,5.08137762]
[1673216180351,0.01570766,16974.0,16973.0,5.37593762]
[1673216180861,0.01570766,16974.0,16973.0,6.07593762]
[1673216181110,0.01570766,16974.0,16973.0,5.78137762]
[1673216181359,0.01570766,16974.0,16973.0,6.07593762]
[1673216182284,0.01570766,16974.0,16973.0,5.78137762]
[1673216182532,0.01570766,16974.0,16973.0,5.77593762]
[1673216182782,0.01570766,16974.0,16973.0,6.07593762]
[1673216183782,0.01570766,16974.0,16973.0,5.77593762]
[1673216184510,0.01570766,16974.0,16973.0,5.59955486]
[1673216185033,0.01570766,16974.0,16973.0,5.59956486]
[1673216186803,0.01570766,16974.0,16973.0,4.89956486]
[1673216187991,0.01570766,16974.0,16973.0,5.59956486]
[1673216188745,0.01570766,16974.0,16973.0,5.77594762]
[1673216190111,0.01570766,16974.0,16973.0,5.48137762]
[1673216190357,0.01570766,16974.0,16973.0,5.77594762]
[1673216191131,0.01570766,16974.0,16973.0,5.30499125]
[1673216191443,0.01570766,16974.0,16973.0,5.59956125]
[1673216191680,0.01570766,16974.0,16973.0,5.77594762]
[1673216192639,0.01133766,16974.0,16973.0,5.77594762]
[1673216192869,0.07559828,16974.0,16973.0,5.48137762]
[1673216193121,0.07559828,16974.0,16973.0,5.77594762]
[1673216194054,0.07559828,16974.0,16973.0,5.07594762]
[1673216194902,0.07559828,16974.0,16973.0,5.77594762]
[1673216195885,0.00953766,16974.0,16973.0,5.77594762]
[1673216196141,0.00953766,16974.0,16973.0,5.48137762]
[1673216196433,0.00953766,16974.0,16973.0,5.77594762]
[1673216197387,0.00953766,16974.0,16973.0,5.48137762]
[1673216197647,0.00953766,16974.0,16973.0,5.77594762]
[1673216201020,0.00953766,16974.0,16973.0,5.07594762]
[1673216202001,0.00953766,16974.0,16973.0,5.77594762]
[1673216204765,0.00953766,16974.0,16973.0,6.04117339]
[1673216204981,0.00953766,16974.0,16973.0,5.5995662]
[1673216206783,0.00953766,16974.0,16973.0,5.15742762]
[1673216207004,0.00953766,16974.0,16973.0,5.5995662]
[1673216207930,0.00953766,16974.0,16973.0,4.8995662]
[1673216208158,0.00953766,16974.0,16973.0,4.45742762]
[1673216208370,0.00953766,16974.0,16973.0,4.8995662]
[1673216208616,0.00953766,16974.0,16973.0,4.45742762]
[1673216208835,0.00796878,16974.0,16973.0,5.5995762]
[1673216209862,0.00796878,16974.0,16973.0,4.98097584]
[1673216210489,0.00796878,16974.0,16973.0,4.31845384]
[1673216210744,1.06797092,16974.0,16973.0,3.24416482]
[1673216210988,0.891425,16974.0,16973.0,3.24416482]
[1673216211227,0.00796878,16974.0,16973.0,4.18209511]
[1673216212592,0.00796878,16974.0,16973.0,3.24416482]
[1673216212593,0.89145005,16974.0,16973.0,3.24416482]
[1673216215628,0.00796878,16974.0,16973.0,3.24416482]
[1673216216368,0.89142047,16974.0,16973.0,3.24416482]
[1673216216589,0.89142047,16974.0,16973.0,3.06733755]
[1673216217551,0.00796878,16974.0,16973.0,3.06733755]
[1673216218321,0.00796878,16974.0,16973.0,2.36733755]
[1673216218558,0.00796878,16974.0,16973.0,2.54416482]
[1673216219291,0.00796878,16974.0,16973.0,3.24416482]
[1673216220628,0.00796878,16974.0,16973.0,3.61210682]
[1673216221138,0.00796878,16974.0,16973.0,3.24416482]
[1673216221383,0.00796878,16974.0,16973.0,3.06733755]
[1673216221886,0.00796878,16974.0,16973.0,3.24416482]
[1673216224158,0.00796878,16974.0,16973.0,3.06733755]
[1673216225173,0.89144575,16974.0,16973.0,3.06733755]
[1673216225515,0.89144575,16974.0,16973.0,2.36733755]
[1673216225690,0.00796878,16974.0,16973.0,2.36733755]
[1673216225893,0.89144063,16974.0,16973.0,2.36733755]
[1673216226106,0.00796878,16974.0,16973.0,1.77816655]
[1673216226355,0.00796878,16974.0,16973.0,2.47816655]
[1673216226630,0.00796878,16974.0,16973.0,1.30009155]
[1673216226863,0.89146505,16974.0,16973.0,2.47840955]
[1673216227086,0.89145493,16974.0,16973.0,2.47840955]
[1673216227594,0.89145493,16974.0,16973.0,1.940318]
[1673216227842,1.59811941,16974.0,16973.0,1.351147]
[1673216228062,1.86293829,16974.0,16973.0,1.351147]
[1673216228984,1.59811941,16974.0,16973.0,1.351147]
[1673216229228,1.85974738,16974.0,16973.0,0.7]
[1673216229564,1.87074738,16974.0,16973.0,0.763]
[1673216229738,1.87074738,16974.0,16973.0,0.76289783]
[1673216230169,2.02948814,16974.0,16973.0,0.76289783]
[1673216230387,1.8706585,16974.0,16973.0,0.76289783]
[1673216230609,2.20591918,16974.0,16973.0,0.76289783]
[1673216232135,1.8706585,16974.0,16973.0,0.76289783]
[1673216232887,1.60583962,16974.0,16973.0,0.76289783]
[1673216233375,1.8706585,16974.0,16973.0,0.76289783]
[1673216234579,1.60583962,16974.0,16973.0,0.76289783]
[1673216236092,1.8706585,16974.0,16973.0,0.76289783]
[1673216236814,1.60583962,16974.0,16973.0,0.76289783]
[1673216237965,1.8706585,16974.0,16973.0,0.76289783]
[1673216238418,1.60583962,16974.0,16973.0,0.76289783]
[1673216239441,1.8706585,16974.0,16973.0,0.76289783]
[1673216240941,1.60583962,16974.0,16973.0,0.76289783]
[1673216241315,1.8706585,16974.0,16973.0,0.76289783]
[1673216241783,2.20643559,16974.0,16973.0,0.76289783]
[1673216242485,2.38307687,16974.0,16973.0,0.76289783]
[1673216242738,2.38304587,16974.0,16973.0,0.76289783]
[1673216242990,2.55938754,16974.0,16973.0,0.76289783]
[1673216243480,2.92734625,16974.0,16973.0,0.76289783]
[1673216243739,2.57424793,16974.0,16973.0,0.76289783]
[1673216244477,2.92734625,16974.0,16973.0,0.76289783]
[1673216244726,2.57424793,16974.0,16973.0,0.76289783]
[1673216244975,2.92734625,16974.0,16973.0,0.76289783]
[1673216245482,2.75098787,16974.0,16973.0,0.76289783]
[1673216245747,2.92734782,16974.0,16973.0,0.76289783]
[1673216246797,2.5742495,16974.0,16973.0,0.76289783]
[1673216247057,2.73998787,16974.0,16973.0,0.69989783]
[1673216247313,2.74498787,16974.0,16973.0,0.73589783]
[1673216251649,2.40924178,16974.0,16973.0,0.73589783]
[1673216251898,2.74483316,16974.0,16973.0,0.036]
[1673216252927,2.74483316,16974.0,16973.0,0.736]
[1673216255008,2.40924178,16974.0,16973.0,0.736]
[1673216255291,2.74484909,16974.0,16973.0,0.736]
[1673216256189,2.74480502,16974.0,16973.0,0.736]
[1673216256446,2.92135904,16974.0,16973.0,0.736]
[1673216257228,2.92135904,16974.0,16973.0,0.73592163]
[1673216257229,3.86832915,16974.0,16973.0,0.73592163]
[1673216257747,4.39752804,16974.0,16973.0,0.73592163]
[1673216258238,3.86832915,16974.0,16973.0,0.73592163]
[1673216259504,4.98666404,16974.0,16973.0,0.73592163]
[1673216259755,4.98188617,16974.0,16973.0,0.73592163]
[1673216260007,4.98666404,16974.0,16973.0,0.73592163]
[1673216260249,4.98666404,16974.0,16973.0,0.73092163]
[1673216260734,4.45746515,16974.0,16973.0,0.73092163]
[1673216261243,4.98666404,16974.0,16973.0,0.73092163]
[1673216261488,4.45746515,16974.0,16973.0,0.73092163]
[1673216269670,4.98666404,16974.0,16973.0,0.73092163]
[1673216270192,4.98666404,16974.0,16973.0,0.03092163]
[1673216270495,5.06552768,16974.0,16973.0,0.03092163]
[1673216270762,4.98666404,16974.0,16973.0,0.03092163]
[1673216271019,4.98666404,16974.0,16973.0,0.72339831]
[1673216271286,4.98166404,16974.0,16973.0,0.7]
[1673216271537,5.11666404,16974.0,16973.0,0.705]
[1673216271796,4.98166404,16974.0,16973.0,0.7]
[1673216272050,4.98166404,16974.0,16973.0,0.705]
[1673216272051,5.11666404,16974.0,16973.0,0.705]
[1673216274763,5.11666404,16974.0,16973.0,0.7]
[1673216275016,4.98166404,16974.0,16973.0,0.7]
[1673216275263,4.56095548,16974.0,16973.0,0.705]
[1673216275772,5.22326503,16974.0,16973.0,0.705]
[1673216278365,4.87726503,16974.0,16973.0,0.705]
[1673216278827,4.50932303,16974.0,16973.0,0.705]
[1673216279085,4.87726503,16974.0,16973.0,0.705]
[1673216279848,4.50932303,16974.0,16973.0,0.705]
[1673216280101,4.87726503,16974.0,16973.0,0.705]
[1673216280346,4.50932303,16974.0,16973.0,0.705]
[1673216280671,4.87726503,16974.0,16973.0,0.705]
[1673216280848,4.87656275,16974.0,16973.0,0.705]
[1673216281371,4.50862075,16974.0,16973.0,0.705]
[1673216281626,4.87656275,16974.0,16973.0,0.705]
[1673216284058,4.50862075,16974.0,16973.0,0.705]
[1673216284307,4.87656275,16974.0,16973.0,0.705]
[1673216284550,4.50862075,16974.0,16973.0,0.705]
[1673216284803,4.87656275,16974.0,16973.0,0.705]
[1673216286334,4.50862075,16974.0,16973.0,0.705]
[1673216286588,4.87656275,16974.0,16973.0,0.705]
[1673216287086,5.44050243,16974.0,16973.0,0.005]
[1673216287334,4.87656275,16974.0,16973.0,0.005]
[1673216287593,4.50862075,16974.0,16973.0,0.005]
[1673216287813,4.87656275,16974.0,16973.0,0.005]
[1673216288065,4.87656275,16974.0,16973.0,0.705]
[1673216288568,4.50862075,16974.0,16973.0,0.705]
[1673216288814,4.87656275,16974.0,16973.0,0.705]
[1673216289570,4.50862075,16974.0,16973.0,0.705]
[1673216289815,4.87656275,16974.0,16973.0,0.705]
[1673216291991,4.50862075,16974.0,16973.0,0.705]
[1673216292252,4.87656275,16974.0,16973.0,0.705]
[1673216293078,4.50862075,16974.0,16973.0,0.705]
[1673216293356,4.87656275,16974.0,16973.0,0.705]
[1673216293619,4.50862075,16974.0,16973.0,0.705]
[1673216293864,4.87656275,16974.0,16973.0,0.705]
[1673216294369,4.50862075,16974.0,16973.0,0.705]
[1673216294627,4.87656275,16974.0,16973.0,0.705]
[1673216294894,4.50862075,16974.0,16973.0,0.705]
[1673216295130,4.87656275,16974.0,16973.0,0.70493603]
[1673216295919,4.50862075,16974.0,16973.0,0.70493603]
[1673216296132,4.87656275,16974.0,16973.0,0.70493603]
[1673216296782,4.71948691,16974.0,16973.0,0.70493603]
[1673216297008,4.35154491,16974.0,16973.0,0.70493603]
[1673216297295,4.71948691,16974.0,16973.0,0.70493603]
[1673216298074,4.35154491,16974.0,16973.0,0.70493603]
[1673216298316,4.71948691,16974.0,16973.0,0.70493603]
[1673216298589,4.35154491,16974.0,16973.0,0.70493603]
[1673216298834,4.87658225,16974.0,16973.0,0.70493603]
[1673216299079,4.88122422,16974.0,16973.0,0.70493603]
[1673216299339,4.87658225,16974.0,16973.0,0.70493603]
[1673216299595,4.50864025,16974.0,16973.0,0.00493603]
[1673216299855,4.87658225,16974.0,16973.0,0.00493603]
[1673216300543,4.87658225,16974.0,16973.0,0.70493603]
[1673216302212,4.88140248,16974.0,16973.0,0.70493603]
[1673216302478,4.87658225,16974.0,16973.0,0.70493603]
[1673216304472,4.50864025,16974.0,16973.0,0.70493603]
[1673216304720,4.87658225,16974.0,16973.0,0.70493603]
[1673216305008,4.50864025,16974.0,16973.0,0.70493603]
[1673216305232,4.87658225,16974.0,16973.0,0.70493603]
[1673216305486,4.50864025,16974.0,16973.0,0.70493603]
[1673216305728,4.87658225,16974.0,16973.0,0.70493603]
[1673216305971,4.50864025,16974.0,16973.0,0.70493603]
[1673216306229,4.87658225,16974.0,16973.0,0.70493603]
[1673216306535,4.87658225,16974.0,16973.0,0.00493603]
[1673216307719,4.51064025,16974.0,16973.0,0.70493603]
[1673216307967,4.87858225,16974.0,16973.0,0.70493603]
[1673216308219,4.51064025,16974.0,16973.0,0.70493603]
[1673216308430,4.87858225,16974.0,16973.0,0.70493603]
[1673216309692,4.51064025,16974.0,16973.0,0.70493603]
[1673216309937,4.87858225,16974.0,16973.0,0.70493603]
[1673216310188,4.51064025,16974.0,16973.0,0.70493603]
[1673216310431,4.87858225,16974.0,16973.0,0.70493603]
[1673216310684,4.51064025,16974.0,16973.0,0.70493603]
[1673216310930,4.87858225,16974.0,16973.0,0.70493603]
[1673216311646,4.51064025,16974.0,16973.0,0.70493603]
[1673216311859,4.87858225,16974.0,16973.0,0.70493603]
[1673216312103,4.51064025,16974.0,16973.0,0.70493603]
[1673216312329,4.87858225,16974.0,16973.0,0.70493603]
[1673216313110,4.51064025,16974.0,16973.0,0.70493603]
[1673216313354,4.87858225,16974.0,16973.0,0.70493603]
[1673216313607,4.51064025,16974.0,16973.0,0.70493603]
[1673216313879,4.87858225,16974.0,16973.0,0.70493603]
[1673216314326,4.51064025,16974.0,16973.0,0.70493603]
[1673216314558,4.87858225,16974.0,16973.0,0.70493603]
[1673216314821,4.51064025,16974.0,16973.0,0.70493603]
[1673216315082,4.87858225,16974.0,16973.0,0.70493603]
[1673216315789,4.51064025,16974.0,16973.0,0.70493603]
[1673216316047,4.87858225,16974.0,16973.0,0.70493603]
[1673216316802,4.87858225,16974.0,16973.0,0.00493603]
[1673216317774,4.51064025,16974.0,16973.0,0.00493603]
[1673216318060,4.87858225,16974.0,16973.0,0.70493603]
[1673216318279,4.87858225,16974.0,16973.0,0.70484922]
[1673216318503,4.51064025,16974.0,16973.0,0.70484922]
[1673216318750,4.87858225,16974.0,16973.0,0.70484922]
[1673216319013,4.57184891,16974.0,16973.0,0.70484922]
[1673216319271,4.93979091,16974.0,16973.0,0.70484922]
[1673216321219,4.57184891,16974.0,16973.0,0.70484922]
[1673216321431,4.93979091,16974.0,16973.0,0.70484922]
[1673216322666,4.57184891,16974.0,16973.0,0.70484922]
[1673216322917,4.93979091,16974.0,16973.0,0.70484922]
[1673216323632,4.57184891,16974.0,16973.0,0.70484922]
[1673216323889,4.93979091,16974.0,16973.0,0.00484922]
[1673216324416,4.57184891,16974.0,16973.0,0.00484922]
[1673216324623,4.93979091,16974.0,16973.0,0.00484922]
[1673216324897,4.93979091,16974.0,16973.0,0.70484922]
[1673216325381,4.57184891,16974.0,16973.0,0.70484922]
[1673216325679,4.93979091,16974.0,16973.0,0.70484922]
[1673216326418,4.57184891,16974.0,16973.0,0.70484922]
[1673216326657,4.93979091,16974.0,16973.0,0.70484922]
[1673216326925,4.57184891,16974.0,16973.0,0.70484922]
[1673216327151,4.93979091,16974.0,16973.0,0.70484922]
[1673216327903,4.41484585,16974.0,16973.0,0.70484922]
[1673216328168,4.93978383,16974.0,16973.0,0.70484922]
[1673216329643,4.57184183,16974.0,16973.0,0.70484922]
[1673216329857,4.93978383,16974.0,16973.0,0.70484922]
[1673216331121,4.93978383,16974.0,16973.0,0.00484922]
[1673216332080,4.93978383,16974.0,16973.0,0.70484922]
[1673216332543,4.57184183,16974.0,16973.0,0.70484922]
[1673216332787,4.93978383,16974.0,16973.0,0.70484922]
[1673216334225,4.57184183,16974.0,16973.0,0.70484922]
[1673216334477,4.93978383,16974.0,16973.0,0.70484922]
[1673216335217,4.57184183,16974.0,16973.0,0.70484922]
[1673216335502,4.93978383,16974.0,16973.0,0.70484922]
[1673216336998,4.94343984,16974.0,16973.0,0.70484922]
[1673216337218,5.31138184,16974.0,16973.0,0.70484922]
[1673216337436,4.93978383,16974.0,16973.0,0.70484922]
[1673216337940,4.57184183,16974.0,16973.0,0.00484922]
[1673216338204,4.93978383,16974.0,16973.0,0.00484922]
[1673216338422,4.57184183,16974.0,16973.0,0.00484922]